fUSD/lending_fUSD_20250219
["ID","MTS","AMOUNT","RATE_DAILY","PERIOD"]
[353650349,1739981471505,-500.0,0.00013416,2]
[353650350,1739981471515,-500.0,0.00013416,2]
[353650351,1739981471526,-771.67,0.00013416,2]
[353650352,1739981471536,-500.0,0.00013416,2]
[353650353,1739981471546,-372.11192298,0.00013416,2]
[353650354,1739981471556,-500.0,0.00013416,2]
[353650355,1739981471566,-500.0,0.00013416,2]
[353650356,1739981471575,-500.0,0.00013416,2]
[353650357,1739981471587,-514.55,0.00013416,2]
[353650358,1739981471596,-512.14,0.00013416,2]
[353650359,1739981471605,-500.0,0.00013416,2]
[353650360,1739981471615,-500.0,0.00013416,2]
[353650361,1739981471625,-1003.49,0.00013416,2]
[353650362,1739981471634,-658.19,0.00013416,2]
[353650363,1739981471644,-500.0,0.00013416,2]
[353650364,1739981471654,-500.0,0.00013416,2]
[353650365,1739981471663,-500.0,0.00013416,2]
[353650366,1739981471673,-500.0,0.00013416,2]
[353650367,1739981471682,-1162.25,0.00013416,2]
[353650368,1739981471692,-500.0,0.00013416,2]
[353650369,1739981471702,-500.0,0.00013416,2]
[353650370,1739981471712,-500.0,0.00013416,2]
[353650371,1739981471721,-960.4,0.00013416,2]
[353650372,1739981471731,-907.8,0.00013416,2]
[353650373,1739981471741,-500.0,0.00013416,2]
[353650374,1739981471751,-500.0,0.00013416,2]
[353650375,1739981471760,-500.0,0.00013416,2]
[353650376,1739981471770,-500.0,0.00013416,2]
[353650377,1739981471779,-541.48227773,0.00013416,2]
[353650378,1739981471789,-500.0,0.00013416,2]
[353650379,1739981471799,-500.0,0.00013416,2]
[353650380,1739981471809,-500.0,0.00013416,2]
[353650381,1739981471818,-1713.19,0.00013416,2]
[353650382,1739981471829,-627.67325561,0.00013416,2]
[353650383,1739981471839,-518.56,0.00013416,2]
[353650384,1739981471848,-842.91,0.00013416,2]
[353650385,1739981471857,-910.58,0.00013416,2]
[353650386,1739981471867,-500.0,0.00013416,2]
[353650387,1739981471878,-500.0,0.00013416,2]
[353650388,1739981471887,-500.0,0.00013416,2]
[353650389,1739981471896,-500.0,0.00013416,2]
[353650390,1739981471906,-787.35,0.00013416,2]
[353650391,1739981471915,-500.0,0.00013416,2]
[353650392,1739981471925,-500.0,0.00013416,2]
[353650393,1739981471934,-1700.48,0.00013416,2]
[353650394,1739981471944,-500.0,0.00013416,2]
[353650395,1739981471953,-500.0,0.00013416,2]
[353650396,1739981471963,-1673.22,0.00013416,2]
[353650397,1739981471972,-500.0,0.00013416,2]
[353650398,1739981471982,-500.0,0.00013416,2]
[353650399,1739981471991,-1467.07,0.00013416,2]
[353650400,1739981472000,-654.58,0.00013416,2]
[353650401,1739981472010,-500.0,0.00013416,2]
[353650402,1739981472020,-846.23,0.00013416,2]
[353650403,1739981472029,-500.0,0.00013416,2]
[353650404,1739981472039,-1201.88,0.00013416,2]
[353650405,1739981472048,-500.0,0.00013416,2]
[353650406,1739981472058,-508.72,0.00013416,2]
[353650407,1739981472068,-500.0,0.00013416,2]
[353650408,1739981472079,-439.06739404,0.00013416,2]
[353650409,1739981472088,-886.41,0.00013416,2]
[353650410,1739981472098,-500.0,0.00013416,2]
[353650411,1739981472108,-500.0,0.00013416,2]
[353650412,1739981472117,-500.0,0.00013416,2]
[353650413,1739981472127,-1529.79,0.00013416,2]
[353650414,1739981472137,-500.0,0.00013416,2]
[353650415,1739981472147,-500.0,0.00013416,2]
[353650416,1739981472156,-500.0,0.00013416,2]
[353650417,1739981472166,-500.0,0.00013416,2]
[353650418,1739981472176,-578.97,0.00013416,2]
[353650419,1739981472186,-1547.71,0.00013416,2]
[353650420,1739981472196,-500.0,0.00013416,2]
[353650421,1739981472206,-1667.54,0.00013416,2]
[353650422,1739981472216,-500.0,0.00013416,2]
[353650423,1739981472227,-1923.19,0.00013416,2]
[353650424,1739981472239,-500.0,0.00013416,2]
[353650425,1739981472250,-500.0,0.00013416,2]
[353650426,1739981472259,-679.7,0.00013416,2]
[353650427,1739981472270,-500.0,0.00013416,2]
[353650428,1739981472280,-512.51,0.00013416,2]
[353650429,1739981472290,-1454.02,0.00013416,2]
[353650430,1739981472300,-672.54,0.00013416,2]
[353650431,1739981472310,-771.34,0.00013416,2]
[353650432,1739981472320,-1642.33,0.00013416,2]
[353650433,1739981472331,-1769.83,0.00013416,2]
[353650434,1739981472341,-623.02,0.00013416,2]
[353650435,1739981472351,-200.07003228,0.00013416,2]
[353650436,1739981472360,-1763.07,0.00013416,2]
[353650437,1739981472371,-700.88,0.00013416,2]
[353650438,1739981472381,-1058.8,0.00013416,2]
[353650439,1739981472392,-527.23,0.00013416,2]
[353650440,1739981472402,-846.13,0.00013416,2]
[353650441,1739981472413,-500.0,0.00013416,2]
[353650442,1739981472424,-600.7,0.00013416,2]
[353650443,1739981472435,-500.0,0.00013416,2]
[353650444,1739981472446,-1534.82,0.00013416,2]
[353650445,1739981472457,-1442.91,0.00013416,2]
[353650446,1739981472467,-745.68,0.00013416,2]
[353650447,1739981472477,-1387.3,0.00013416,2]
[353650448,1739981472487,-838.32,0.00013416,2]
[353650449,1739981472498,-500.0,0.00013416,2]
[353650450,1739981472508,-500.0,0.00013416,2]
[353650451,1739981472519,-500.0,0.00013416,2]
[353650452,1739981472531,-1073.32,0.00013416,2]
[353650453,1739981472542,-1071.12,0.00013416,2]
[353650454,1739981472553,-586.27,0.00013416,2]
[353650455,1739981472563,-649.02478287,0.00013416,2]
[353650456,1739981472574,-1123.84,0.00013416,2]
[353650457,1739981472586,-2348.96,0.00013416,2]
[353650458,1739981472596,-500.0,0.00013416,2]
[353650459,1739981472606,-500.0,0.00013416,2]
[353650460,1739981472616,-1370.88,0.00013416,2]
[353650461,1739981472626,-1050.15,0.00013416,2]
[353650462,1739981472637,-881.06,0.00013416,2]
[353650463,1739981472647,-500.0,0.00013416,2]
[353650464,1739981472657,-500.0,0.00013416,2]
[353650465,1739981472668,-500.0,0.00013416,2]
[353650466,1739981472677,-500.0,0.00013416,2]
[353650467,1739981472687,-500.0,0.00013416,2]
[353650468,1739981472697,-500.0,0.00013416,2]
[353650469,1739981472707,-500.0,0.00013416,2]
[353650470,1739981472717,-500.0,0.00013416,2]
[353650471,1739981472726,-500.0,0.00013416,2]
[353650472,1739981472736,-500.0,0.00013416,2]
[353650473,1739981472745,-500.0,0.00013416,2]
[353650474,1739981472755,-1188.82,0.00013416,2]
[353650475,1739981472764,-1774.14,0.00013416,2]
[353650476,1739981472774,-500.0,0.00013416,2]
[353650477,1739981472784,-2626.88,0.00013416,2]
[353650478,1739981472793,-500.0,0.00013416,2]
[353650479,1739981472803,-4378.38,0.00013416,2]
[353650480,1739981472812,-4564.78,0.00013416,2]
[353650481,1739981472822,-375.15984556,0.00013416,2]
[353650482,1739981472833,-500.0,0.00013416,2]
[353650483,1739981472843,-954.65,0.00013416,2]
[353650484,1739981472852,-500.0,0.00013416,2]
[353650485,1739981472862,-1219.89,0.00013416,2]
[353650486,1739981472872,-500.0,0.00013416,2]
[353650487,1739981472882,-837.92,0.00013416,2]
[353650488,1739981472892,-1220.63,0.00013416,2]
[353650489,1739981473078,-705.79,0.00013416,2]
[353650490,1739981473100,-1165.0,0.00013416,2]
[353650491,1739981473110,-750.7,0.00013416,2]
[353650492,1739981473120,-2297.88,0.00013416,2]
[353650493,1739981473130,-1406.06,0.00013416,2]
[353650494,1739981473141,-598.52,0.00013416,2]
[353650495,1739981473150,-1053.26,0.00013416,2]
[353650496,1739981473159,-500.0,0.00013416,2]
[353650497,1739981473170,-4306.96,0.00013416,2]
[353650498,1739981473180,-500.0,0.00013416,2]
[353650499,1739981473190,-850.64,0.00013416,2]
[353650500,1739981473200,-1402.42,0.00013416,2]
[353650501,1739981473210,-1548.92,0.00013416,2]
[353650502,1739981473220,-4046.57,0.00013416,2]
[353650503,1739981473233,-500.0,0.00013416,2]
[353650504,1739981473243,-500.0,0.00013416,2]
[353650505,1739981473252,-500.0,0.00013416,2]
[353650506,1739981473263,-1817.06,0.00013416,2]
[353650507,1739981473273,-579.94,0.00013416,2]
[353650508,1739981473283,-537.41,0.00013416,2]
[353650509,1739981473292,-3247.97,0.00013416,2]
[353650510,1739981473301,-1393.67,0.00013416,2]
[353650511,1739981473312,-500.0,0.00013416,2]
[353650512,1739981473322,-3207.33,0.00013416,2]
[353650513,1739981473333,-500.0,0.00013416,2]
[353650514,1739981473343,-1502.66,0.00013416,2]
[353650515,1739981473352,-500.0,0.00013416,2]
[353650516,1739981473362,-500.0,0.00013416,2]
[353650517,1739981473372,-1068.57,0.00013416,2]
[353650518,1739981473381,-3221.83,0.00013416,2]
[353650519,1739981473390,-500.0,0.00013416,2]
[353650520,1739981473399,-509.24,0.00013416,2]
[353650521,1739981473410,-1032.47,0.00013416,2]
[353650522,1739981473420,-1458.59,0.00013416,2]
[353650523,1739981473431,-943.7,0.00013416,2]
[353650524,1739981473441,-2527.73,0.00013416,2]
[353650525,1739981473452,-561.48,0.00013416,2]
[353650526,1739981473463,-500.0,0.00013416,2]
[353650527,1739981473474,-1883.09,0.00013416,2]
[353650528,1739981473484,-1480.58,0.00013416,2]
[353650529,1739981473496,-2707.66,0.00013416,2]
[353650530,1739981473508,-503.09632379,0.00013416,2]
[353650531,1739981473518,-500.0,0.00013416,2]
[353650532,1739981473530,-3022.84,0.00013416,2]
[353650533,1739981473541,-705.48,0.00013416,2]
[353650534,1739981473553,-524.65643236,0.00013416,2]
[353650535,1739981473565,-500.0,0.00013416,2]
[353650536,1739981473576,-1400.94,0.00013416,2]
[353650537,1739981473591,-238.22720809,0.00013416,2]
[353650538,1739981473603,-1048.08,0.00013416,2]
[353650539,1739981473615,-523.15,0.00013416,2]
[353650540,1739981473626,-737.53,0.00013416,2]
[353650541,1739981473637,-500.0,0.00013416,2]
[353650542,1739981473647,-500.0,0.00013416,2]
[353650543,1739981473657,-934.73,0.00013416,2]
[353650544,1739981473668,-500.0,0.00013416,2]
[353650545,1739981473678,-500.0,0.00013416,2]
[353650546,1739981473689,-591.76,0.00013416,2]
[353650547,1739981473697,-2935.54,0.00013416,2]
[353650548,1739981473706,-500.0,0.00013416,2]
[353650549,1739981473715,-540.26,0.00013416,2]
[353650550,1739981473725,-919.89,0.00013416,2]
[353650551,1739981473735,-500.0,0.00013416,2]
[353650552,1739981473745,-500.0,0.00013416,2]
[353650553,1739981473755,-1631.66,0.00013416,2]
[353650554,1739981473766,-1630.74,0.00013416,2]
[353650555,1739981473777,-1090.36,0.00013416,2]
[353650556,1739981473787,-500.0,0.00013416,2]
[353650557,1739981473797,-1488.16,0.00013416,2]
[353650558,1739981473807,-500.0,0.00013416,2]
[353650559,1739981473817,-853.84,0.00013416,2]
[353650560,1739981473827,-617.93879158,0.00013416,2]
[353650561,1739981473840,-531.89,0.00013416,2]
[353650562,1739981473850,-550.84,0.00013416,2]
[353650563,1739981473861,-500.0,0.00013416,2]
[353650564,1739981473871,-651.0,0.00013416,2]
[353650565,1739981473881,-219.05399199,0.00013416,2]
[353650566,1739981473892,-500.0,0.00013416,2]
[353650567,1739981473903,-1229.87,0.00013416,2]
[353650568,1739981473913,-2787.49,0.00013416,2]
[353650569,1739981473923,-500.0,0.00013416,2]
[353650570,1739981473934,-735.14,0.00013416,2]
[353650571,1739981473945,-590.33,0.00013416,2]
[353650572,1739981473955,-500.0,0.00013416,2]
[353650573,1739981473965,-500.0,0.00013416,2]
[353650574,1739981473975,-2404.94,0.00013416,2]
[353650575,1739981473986,-500.0,0.00013416,2]
[353650576,1739981473997,-500.0,0.00013416,2]
[353650577,1739981474007,-1041.61,0.00013416,2]
[353650578,1739981474018,-500.0,0.00013416,2]
[353650579,1739981474029,-500.0,0.00013416,2]
[353650580,1739981474039,-1357.32,0.00013416,2]
[353650581,1739981474048,-868.88,0.00013416,2]
[353650582,1739981474058,-658.88,0.00013416,2]
[353650583,1739981474068,-651.71,0.00013416,2]
[353650584,1739981474080,-651.58,0.00013416,2]
[353650585,1739981474090,-500.0,0.00013416,2]
[353650586,1739981474100,-803.85,0.00013416,2]
[353650587,1739981474110,-500.0,0.00013416,2]
[353650588,1739981474121,-500.0,0.00013416,2]
[353650589,1739981474131,-1016.2,0.00013416,2]
[353650590,1739981474141,-500.0,0.00013416,2]
[353650591,1739981474149,-1118.0,0.00013416,2]
[353650592,1739981474158,-1628.61,0.00013416,2]
[353650593,1739981474169,-500.0,0.00013416,2]
[353650594,1739981474179,-1202.47,0.00013416,2]
[353650595,1739981474189,-300.0,0.00013417,2]
[353650596,1739981474199,-1721.94,0.00013417,2]
[353650597,1739981474210,-151.0,0.00013418,2]
[353650598,1739981474219,-867.43,0.00013418,2]
[353650599,1739981474230,-151.0,0.00013418,2]
[353650600,1739981474241,-500.0,0.00013418,2]
[353650601,1739981474250,-1084.29,0.00013418,2]
[353650602,1739981474260,-555.48,0.00013418,2]
[353650603,1739981474271,-500.0,0.00013418,2]
[353650604,1739981474282,-603.46885172,0.00013418,2]
[353650605,1739981474291,-151.0,0.00013418,2]
[353650606,1739981474301,-819.96,0.00013418,2]
[353650607,1739981474310,-546.22,0.00013418,2]
[353650608,1739981474320,-151.0,0.00013418,2]
[353650609,1739981474332,-500.0,0.00013418,2]
[353650610,1739981474342,-500.0,0.00013418,2]
[353650611,1739981474353,-263.368304,0.00013418,2]
[353650612,1739981474363,-1086.38,0.00013418,2]
[353650613,1739981474374,-418.93048046,0.00013418,2]
[353650614,1739981474385,-500.0,0.00013418,2]
[353650615,1739981474395,-521.328176,0.00013418,2]
[353650616,1739981474406,-978.47,0.00013418,2]
[353650617,1739981474416,-521.328176,0.00013418,2]
[353650618,1739981474427,-500.0,0.00013418,2]
[353650619,1739981474437,-500.0,0.00013418,2]
[353650620,1739981474447,-737.96,0.00013418,2]
[353650621,1739981474458,-500.0,0.00013418,2]
[353650622,1739981474468,-500.0,0.00013418,2]
[353650623,1739981474478,-500.0,0.00013418,2]
[353650624,1739981474488,-500.0,0.00013418,2]
[353650625,1739981474499,-562.17,0.00013418,2]
[353650626,1739981474509,-500.0,0.00013418,2]
[353650627,1739981474519,-821.61,0.00013418,2]
[353650628,1739981474529,-929.95,0.00013418,2]
[353650629,1739981474539,-500.0,0.00013418,2]
[353650630,1739981474550,-500.0,0.00013418,2]
[353650631,1739981474560,-500.0,0.00013418,2]
[353650632,1739981474570,-500.0,0.00013418,2]
[353650633,1739981474580,-500.0,0.00013418,2]
[353650634,1739981474589,-500.0,0.00013418,2]
[353650635,1739981474598,-517.42,0.00013418,2]
[353650636,1739981474610,-500.0,0.00013418,2]
[353650637,1739981474621,-202.18781485,0.00013418,2]
[353650638,1739981474632,-500.0,0.00013418,2]
[353650639,1739981474642,-500.0,0.00013418,2]
[353650640,1739981474653,-500.0,0.00013418,2]
[353650641,1739981474664,-500.0,0.00013418,2]
[353650642,1739981474675,-500.0,0.00013418,2]
[353650643,1739981474686,-500.0,0.00013418,2]
[353650644,1739981474697,-717.42,0.00013418,2]
[353650645,1739981474709,-500.0,0.00013418,2]
[353650646,1739981474720,-374.84256742,0.00013418,2]
[353650647,1739981474730,-500.0,0.00013418,2]
[353650648,1739981474741,-500.0,0.00013418,2]
[353650649,1739981474751,-151.0,0.00013418,2]
[353650650,1739981474762,-500.0,0.00013418,2]
[353650651,1739981474774,-500.0,0.00013418,2]
[353650652,1739981474786,-592.97,0.00013418,2]
[353650653,1739981474797,-500.0,0.00013418,2]
[353650654,1739981474808,-500.0,0.00013418,2]
[353650655,1739981474819,-762.46,0.00013418,2]
[353650656,1739981474832,-500.0,0.00013418,2]
[353650657,1739981474843,-500.0,0.00013418,2]
[353650658,1739981474853,-500.0,0.00013418,2]
[353650659,1739981474863,-506.45374156,0.00013418,2]
[353650660,1739981474874,-500.0,0.00013418,2]
[353650661,1739981474884,-703.18,0.00013418,2]
[353650662,1739981474894,-500.0,0.00013418,2]
[353650663,1739981474904,-522.43867105,0.00013418,2]
[353650664,1739981474914,-537.6,0.00013418,2]
[353650665,1739981474925,-500.0,0.00013418,2]
[353650666,1739981474936,-500.0,0.00013418,2]
[353650667,1739981474947,-628.91,0.00013418,2]
[353650668,1739981474956,-500.0,0.00013418,2]
[353650669,1739981474967,-1825.39,0.00013418,2]
[353650670,1739981474977,-570.79488659,0.00013418,2]
[353650671,1739981474987,-504.88416779,0.00013418,2]
[353650672,1739981474998,-500.0,0.00013418,2]
[353650673,1739981475008,-548.04,0.00013418,2]
[353650674,1739981475018,-500.0,0.00013418,2]
[353650675,1739981475029,-500.0,0.00013418,2]
[353650676,1739981475039,-500.0,0.00013418,2]
[353650677,1739981475049,-503.17739028,0.00013418,2]
[353650678,1739981475059,-500.0,0.00013418,2]
[353650679,1739981475069,-500.0,0.00013418,2]
[353650680,1739981475079,-500.0,0.00013418,2]
[353650681,1739981475089,-504.37420472,0.00013418,2]
[353650682,1739981475099,-500.0,0.00013418,2]
[353650683,1739981475108,-500.0,0.00013418,2]
[353650684,1739981475118,-500.0,0.00013418,2]
[353650685,1739981475127,-500.0,0.00013418,2]
[353650686,1739981475137,-500.0,0.00013418,2]
[353650687,1739981475146,-500.0,0.00013418,2]
[353650688,1739981475156,-500.0,0.00013418,2]
[353650689,1739981475166,-541.66,0.00013418,2]
[353650690,1739981475178,-500.0,0.00013418,2]
[353650691,1739981475188,-500.0,0.00013418,2]
[353650692,1739981475197,-800.02,0.00013418,2]
[353650693,1739981475208,-500.0,0.00013418,2]
[353650694,1739981475218,-575.63,0.00013418,2]
[353650695,1739981475229,-500.0,0.00013418,2]
[353650696,1739981475241,-500.0,0.00013418,2]
[353650697,1739981475251,-500.0,0.00013418,2]
[353650698,1739981475263,-500.0,0.00013418,2]
[353650699,1739981475273,-584.41,0.00013418,2]
[353650700,1739981475284,-500.0,0.00013418,2]
[353650701,1739981475294,-500.0,0.00013418,2]
[353650702,1739981475305,-500.0,0.00013418,2]
[353650703,1739981475317,-500.0,0.00013418,2]
[353650704,1739981475327,-500.0,0.00013418,2]
[353650705,1739981475339,-500.0,0.00013418,2]
[353650706,1739981475349,-500.0,0.00013418,2]
[353650707,1739981475359,-500.0,0.00013418,2]
[353650708,1739981475368,-500.0,0.00013418,2]
[353650709,1739981475378,-500.0,0.00013418,2]
[353650710,1739981475388,-644.62,0.00013418,2]
[353650711,1739981475399,-500.0,0.00013418,2]
[353650712,1739981475409,-810.37,0.00013418,2]
[353650713,1739981475418,-1012.27,0.00013418,2]
[353650714,1739981475428,-500.0,0.00013418,2]
[353650715,1739981475437,-500.0,0.00013418,2]
[353650716,1739981475447,-835.67,0.00013418,2]
[353650717,1739981475457,-592.15,0.00013418,2]
[353650718,1739981475467,-551.67894827,0.00013418,2]
[353650719,1739981475477,-500.0,0.00013418,2]
[353650720,1739981475487,-500.0,0.00013418,2]
[353650721,1739981475496,-752.16,0.00013418,2]
[353650722,1739981475506,-500.0,0.00013418,2]
[353650723,1739981475515,-500.0,0.00013418,2]
[353650724,1739981475525,-500.0,0.00013418,2]
[353650725,1739981475535,-500.0,0.00013418,2]
[353650726,1739981475545,-500.0,0.00013418,2]
[353650727,1739981475555,-1154.01,0.00013418,2]
[353650728,1739981475565,-500.0,0.00013418,2]
[353650729,1739981475575,-500.0,0.00013418,2]
[353650730,1739981475586,-500.0,0.00013418,2]
[353650731,1739981475596,-500.0,0.00013418,2]
[353650732,1739981475606,-500.0,0.00013418,2]
[353650733,1739981475616,-500.0,0.00013418,7]
[353650734,1739981475625,-500.0,0.00013418,2]
[353650735,1739981475635,-522.3,0.00013418,2]
[353650736,1739981475644,-626.51061913,0.00013418,2]
[353650737,1739981475654,-509.48346501,0.00013418,2]
[353650738,1739981475663,-500.0,0.00013418,2]
[353650739,1739981475742,-688.01,0.00013418,2]
[353650740,1739981475752,-500.0,0.00013418,2]
[353650741,1739981475761,-555.63180708,0.00013418,2]
[353650742,1739981475771,-500.0,0.00013418,2]
[353650743,1739981475780,-500.0,0.00013418,2]
[353650744,1739981475790,-490.51544856,0.00013418,2]
[353650745,1739981475799,-500.0,0.00013418,2]
[353650746,1739981475809,-592.54,0.00013418,2]
[353650747,1739981475818,-500.0,0.00013418,2]
[353650748,1739981475827,-500.0,0.00013418,2]
[353650749,1739981475837,-500.0,0.00013418,2]
[353650750,1739981475849,-500.0,0.00013418,2]
[353650751,1739981475858,-500.0,0.00013418,2]
[353650752,1739981475867,-500.0,0.00013418,2]
[353650753,1739981475877,-500.0,0.00013418,2]
[353650754,1739981475886,-502.23,0.00013418,2]
[353650755,1739981475895,-500.0,0.00013418,2]
[353650756,1739981475905,-546.84,0.00013418,2]
[353650757,1739981475915,-500.0,0.00013418,2]
[353650758,1739981475924,-500.0,0.00013418,2]
[353650759,1739981475933,-500.0,0.00013418,2]
[353650760,1739981475942,-1154.75,0.00013418,2]
[353650761,1739981475952,-500.0,0.00013418,2]
[353650762,1739981475962,-500.0,0.00013418,2]
[353650763,1739981475971,-500.0,0.00013418,2]
[353650764,1739981475981,-500.0,0.00013418,2]
[353650765,1739981475990,-500.0,0.00013418,2]
[353650766,1739981475999,-500.0,0.00013418,2]
[353650767,1739981476008,-500.0,0.00013418,2]
[353650768,1739981476018,-691.64,0.00013418,2]
[353650769,1739981476027,-500.0,0.00013418,2]
[353650770,1739981476036,-500.0,0.00013418,2]
[353650771,1739981476045,-500.0,0.00013418,2]
[353650772,1739981476055,-500.0,0.00013418,2]
[353650773,1739981476064,-500.0,0.00013418,2]
[353650774,1739981476073,-500.0,0.00013418,2]
[353650775,1739981476083,-500.0,0.00013418,2]
[353650776,1739981476093,-683.78,0.00013418,2]
[353650777,1739981476102,-500.0,0.00013418,2]
[353650778,1739981476112,-500.0,0.00013418,2]
[353650779,1739981476122,-584.48096559,0.00013418,2]
[353650780,1739981476132,-500.0,0.00013418,2]
[353650781,1739981476141,-500.0,0.00013418,2]
[353650782,1739981476151,-500.0,0.00013418,2]
[353650783,1739981476161,-674.72,0.00013418,2]
[353650784,1739981476170,-500.0,0.00013418,2]
[353650785,1739981476180,-508.75,0.00013418,2]
[353650786,1739981476190,-500.0,0.00013418,2]
[353650787,1739981476199,-500.0,0.00013418,2]
[353650788,1739981476209,-500.0,0.00013418,2]
[353650789,1739981476219,-500.0,0.00013418,2]
[353650790,1739981476230,-676.58,0.00013418,2]
[353650791,1739981476239,-500.0,0.00013418,2]
[353650792,1739981476248,-1021.62,0.00013418,2]
[353650793,1739981476259,-500.0,0.00013418,2]
[353650794,1739981476270,-500.0,0.00013418,2]
[353650795,1739981476282,-500.0,0.00013418,2]
[353650796,1739981476292,-500.0,0.00013418,2]
[353650797,1739981476303,-500.0,0.00013418,2]
[353650798,1739981476313,-500.0,0.00013418,2]
[353650799,1739981476323,-500.0,0.00013418,2]
[353650800,1739981476334,-642.28,0.00013418,2]
[353650801,1739981476344,-592.0,0.00013418,2]
[353650802,1739981476353,-500.0,0.00013418,2]
[353650803,1739981476363,-500.0,0.00013418,2]
[353650804,1739981476372,-500.0,0.00013418,2]
[353650805,1739981476381,-500.0,0.00013418,2]
[353650806,1739981476390,-500.0,0.00013418,2]
[353650807,1739981476399,-1036.35,0.00013418,2]
[353650808,1739981476409,-500.0,0.00013418,2]
[353650809,1739981476419,-916.85,0.00013418,2]
[353650810,1739981476429,-500.0,0.00013418,2]
[353650811,1739981476439,-500.0,0.00013418,2]
[353650812,1739981476448,-500.0,0.00013418,2]
[353650813,1739981476457,-500.0,0.00013418,2]
[353650814,1739981476466,-500.0,0.00013418,2]
[353650815,1739981476475,-500.0,0.00013418,2]
[353650816,1739981476485,-500.0,0.00013418,2]
[353650817,1739981476494,-500.0,0.00013418,2]
[353650818,1739981476503,-524.41242357,0.00013418,2]
[353650819,1739981476513,-529.85,0.00013418,2]
[353650820,1739981476522,-500.0,0.00013418,2]
[353650821,1739981476532,-500.0,0.00013418,2]
[353650822,1739981476542,-500.0,0.00013418,2]
[353650823,1739981476552,-500.0,0.00013418,2]
[353650824,1739981476562,-500.0,0.00013418,2]
[353650825,1739981476571,-500.0,0.00013418,2]
[353650826,1739981476583,-500.0,0.00013418,2]
[353650827,1739981476592,-500.0,0.00013418,2]
[353650828,1739981476602,-540.14919994,0.00013418,2]
[353650829,1739981476612,-500.0,0.00013418,2]
[353650830,1739981476621,-6974.50663371,0.00013422,2]
[353650831,1739981476631,-151.0,0.00013423,2]
[353650832,1739981476640,-151.0,0.00013423,2]
[353650833,1739981476650,-1000.0,0.00013424,3]
[353650834,1739981476660,-674.84,0.00013425,2]
[353650835,1739981476670,-1376.58,0.00013425,2]
[353650836,1739981476680,-2593.33,0.00013425,2]
[353650837,1739981476689,-2387.5,0.00013425,2]
[353650838,1739981476699,-3362.26,0.00013425,2]
[353650839,1739981476708,-1927.35,0.00013425,2]
[353650840,1739981476718,-3084.37,0.00013425,2]
[353650841,1739981476727,-3904.33,0.00013425,2]
[353650842,1739981476737,-8398.78,0.00013425,2]
[353650843,1739981476747,-1737.59,0.00013425,2]
[353650844,1739981476757,-1979.14,0.00013425,2]
[353650845,1739981476766,-755.1,0.00013425,2]
[353650846,1739981476776,-3253.91,0.00013425,2]
[353650847,1739981476785,-916.63,0.00013425,2]
[353650848,1739981476795,-1946.66,0.00013425,2]